[Event "WSTCC-50 2024"]
[Site "Krakow"]
[Date "2024.07.07"]
[Round "6.2"]
[White "Hjartarson, Johann"]
[Black "Cummings, David H."]
[Result "1-0"]
[ECO "B12"]
[WhiteElo "2472"]
[BlackElo "2314"]
[Annotator "TA"]
[PlyCount "91"]
[EventDate "2024.07.01"]
[EventType "team-tourn"]
[EventCountry "POL"]
[SourceTitle "playchess.com"]
[Source "ChessBase"]
[SourceQuality "1"]
[TimeControl "40/5400+30:1800+30"]

{[%evp 12,91,41,38,41,19,68,75,80,58,100,0,0,0,0,5,0,0,0,0,48,30,25,0,17,-16,-6,-14,0,-9,0,0,0,23,15,0,4,2,16,1,50,45,49,39,35,32,28,22,20,14,41,18,20,14,19,0,0,0,0,-11,28,0,0,0,21,25,116,119,103,104,468,480,508,514,510,503,468,484,459,495,466,463]} 1. e4 {[%emt 0:00:06]} c6 {[%emt 0:00:13]} 2. d4 {[%emt 0:00:09]} d5 {[%emt 0:00:06]} 3. e5 {[%emt 0:00:04]} Bf5 {[%emt 0:00:26]} 4. Nf3 {[%emt 0:00:09]} e6 {[%emt 0:00:21]} 5. Be2 {[%emt 0:00:05]} Nd7 {[%emt 0:00:43]} 6. O-O {[%emt 0:00:16]} a5 {[%emt 0:00:26] The modern move. B12: Caro-Kann: Advance Variation.} 7. a4 {[%emt 0:01:42]} f6 {[%emt 0:00:41]} 8. Nbd2 {[%emt 0:14:39]} fxe5 {[%emt 0:02:24]} (8... Nh6 $1 $11 {feels stronger.}) 9. dxe5 $14 {[%emt 0:00:27]} Bc5 {[%emt 0:02:19]} 10. Nb3 {[%emt 0:01:20]} Ba7 {[%emt 0:06:38]} 11. Nbd4 $146 {[%emt 0:02:53]} ({White should play} 11. Nfd4 $16) ({Predecessor:} 11. Bd2 Ne7 12. Bxa5 Qb8 13. Bc3 O-O 14. Nbd4 Bxd4 15. Nxd4 c5 16. Nxf5 Nxf5 17. g4 {1-0 Pranav,V (2611)-Zia,T (2262) Bangabandhu-chT 2024 (11.1)}) 11... Ne7 $11 {[%emt 0:02:27]} 12. h3 {[%emt 0:04:18]} Nc5 {[%emt 0:15:49]} 13. Be3 {[%emt 0:07:24]} O-O {[%emt 0:06:54]} 14. c3 {[%emt 0:00:26]} Qd7 {[%emt 0:04:05]} 15. Nh4 {[%emt 0:02:48]} Ng6 {[%emt 0:05:33]} (15... Qc7 $11) 16. Nxg6 {[%emt 0:11:50]} Bxg6 {[%emt 0:01:00]} 17. Bg4 {[%emt 0:00:23]} Bf5 {[%emt 0:05:32]} 18. Re1 {[%emt 0:02:29]} Bxg4 {[%emt 0:06:39]} 19. Qxg4 {[%emt 0:05:14]} Rfe8 {[%emt 0:04:20]} 20. Re2 {[%emt 0:04:28]} Qf7 {[%emt 0:01:33]} 21. Rf1 {[%emt 0:13:02]} (21. Nf3 $5) 21... Qg6 {[%emt 0:10:11]} 22. Qxg6 {[%emt 0:01:54]} hxg6 {[%emt 0:00:02]} 23. b3 {[%emt 0:00:25]} Kf7 {[%emt 0:07:48]} 24. Rd1 {[%emt 0:00:52]} Ne4 {[%emt 0:01:55]} 25. Rc2 {[%emt 0:00:27]} Bb8 {[%emt 0:02:09]} (25... g5 $11) 26. Nf3 $14 {[%emt 0:02:17]} Ba7 {[%emt 0:00:31]} 27. Bxa7 {[%emt 0:00:42]} Rxa7 {[%emt 0:00:03]} 28. Nd4 {[%emt 0:00:18]} Ra6 {[%emt 0:01:14]} 29. Kh2 {[%emt 0:06:36]} Ke7 {[%emt 0:02:43]} 30. c4 {[%emt 0:03:53]} dxc4 {[%emt 0:03:39]} 31. Rxc4 {[%emt 0:04:20]} (31. bxc4 Rd8 32. f3 Nc5 $17) 31... Rd8 {[%emt 0:02:00]} (31... Nxf2 32. Rd2 Ne4 33. Nxc6+ Rxc6 34. Rxe4 $18) 32. f3 {[%emt 0:01:58]} Ng5 {[%emt 0:02:26]} 33. Re1 {[%emt 0:01:36]} Rb6 {[%emt 0:00:28]} 34. Re3 {[%emt 0:01:31]} Rb4 {[%emt 0:01:03]} 35. Ne2 {[%emt 0:00:24]} Nh7 {[%emt 0:00:29]} 36. Rxb4 {[%emt 0:04:59]} axb4 {[%emt 0:00:01]} 37. Nf4 {[%emt 0:00:09]} g5 {[%emt 0:01:49]} 38. Nd3 {[%emt 0:00:18]} Rd4 {[%emt 0:00:18] [#]} (38... Nf8 $1 $11) 39. a5 $1 $16 {[%emt 0:00:48]} Rd5 {[%emt 0:01:28]} 40. a6 $1 {[%emt 0:00:08]} ({Much weaker is} 40. Nxb4 $6 Rxa5 41. Kg3 Rb5 $11) 40... Kd7 $2 {[%emt 0:01:17][%mdl 8192]} (40... bxa6 $16 {is a better chance.} 41. Nxb4 Rc5) 41. axb7 $18 {[%emt 0:02:50]} ({Less strong is} 41. Nxb4 Rb5 42. Kg3 c5 $18 (42... Rxb4 $2 {is the wrong capture.} 43. a7 $18)) 41... Kc7 {[%emt 0:01:44]} 42. Nxb4 {[%emt 0:02:15]} Rb5 {[%emt 0:00:23]} 43. b8=Q+ {[%emt 0:00:19]} Kxb8 {[%emt 0:00:41]} 44. Nxc6+ {[%emt 0:00:08]} Kc7 {[%emt 0:00:18]} 45. Nd4 {[%emt 0:00:14]} Rb6 {[%emt 0:00:10]} 46. b4 {[%emt 0:00:23]} 1-0

[Event "WSTCC-50 2024"]
[Site "Krakow"]
[Date "2024.07.07"]
[Round "6.2"]
[White "Lampe, Dirk"]
[Black "Motuz, Karol"]
[Result "0-1"]
[ECO "C84"]
[WhiteElo "2158"]
[BlackElo "2293"]
[Annotator "TA"]
[PlyCount "44"]
[EventDate "2024.07.01"]
[EventType "team-tourn"]
[EventCountry "POL"]
[SourceTitle "playchess.com"]
[Source "ChessBase"]
[SourceQuality "1"]
[TimeControl "40/5400+30:1800+30"]

{[%evp 15,44,27,34,0,0,-17,-2,-18,7,-27,29,0,0,-10,-7,-3,0,0,0,0,2,-29,-44,-37,-24,-29988,-29989,-29990,132,-29991,-29992]} 1. e4 {[%emt 0:00:06]} e5 {[%emt 0:00:18]} 2. Nf3 {[%emt 0:00:23]} Nc6 {[%emt 0:00:07]} 3. Bb5 {[%emt 0:00:07]} a6 {[%emt 0:00:11]} 4. Ba4 {[%emt 0:00:05]} Nf6 {[%emt 0:00:13]} 5. O-O {[%emt 0:00:19]} Be7 {[%emt 0:00:32]} 6. d3 {[%emt 0:02:03]} d6 {[%emt 0:03:09]} 7. c3 {[%emt 0:02:25]} O-O {[%emt 0:00:25]} 8. Re1 {[%emt 0:01:11]} Re8 {[%emt 0:01:18]} 9. Bxc6 {[%emt 0:20:05]} bxc6 {[%emt 0:01:45]} 10. Nbd2 {[%emt 0:00:12]} Bf8 {[%emt 0:01:44]} 11. Nc4 {[%emt 0:04:33] The position is equal.} h6 {[%emt 0:01:53]} 12. Qc2 {[%emt 0:06:58]} g6 {[%emt 0:02:46]} (12... Bg4 $142) 13. d4 {[%emt 0:13:24]} exd4 {[%emt 0:13:24]} 14. cxd4 {[%emt 0:10:59] [#]} Rxe4 $1 {[%emt 0:21:54]} 15. Rxe4 {[%emt 0:05:17]} Bf5 {[%emt 0:00:08]} 16. Nfd2 {[%emt 0:07:46][%cal Oc4e3] Ne3! would now be deadly.} d5 {[%emt 0:17:16]} 17. Ne3 {[%emt 0:00:58][%cal Oe3f5] Threatens to win with Nxf5!} dxe4 {[%emt 0:04:44]} 18. Nxf5 {[%emt 0:01:12]} (18. Qxc6 {simplifies} Bd7 19. Qc2 Bg7 20. Nxe4 Nxe4 21. Qxe4 Qe8 22. Qf4) 18... gxf5 {[%emt 0:00:03]} 19. Qxc6 {[%emt 0:03:14]} Qxd4 {[%emt 0:05:41][%cal Of6g4] ( -> ...Ng4!)} 20. Qxa8 $4 {[%emt 0:03:31][%mdl 8192] [#]} (20. Nf1 $11 Re8 21. Qxc7) 20... Ng4 {[%emt 0:00:30]} 21. Qxa6 {[%emt 0:00:31]} Qxf2+ {[%emt 0:00:15]} 22. Kh1 {[%emt 0:00:14]} Ne3 {[%emt 0:00:28] Prevents Nf1.   Weighted Error Value: White=0.50/Black=0.13 (very precise) .  Loses game:     	White=1     	---        Mistake:       	---       	Black=1      Inaccurate:     	White=3     	---        OK:         	White=3     	Black=2      Best:        	---       	Black=1} 0-1

[Event "WSTCC-50 2024"]
[Site "Krakow"]
[Date "2024.07.07"]
[Round "6.2"]
[White "Bhawoodien, Shabir Hussain"]
[Black "Jhunjhnuwala, Naresh"]
[Result "1-0"]
[ECO "B34"]
[WhiteElo "1990"]
[BlackElo "2009"]
[Annotator "NA RC"]
[PlyCount "51"]
[EventDate "2024.07.01"]
[EventType "team-tourn"]
[EventCountry "POL"]
[SourceTitle "playchess.com"]
[Source "ChessBase"]
[SourceQuality "1"]
[TimeControl "40/5400+30:1800+30"]

1. e4 {[%emt 0:00:10]} c5 {[%emt 0:00:05]} 2. Nf3 {[%emt 0:00:59]} Nc6 {[%emt 0:00:06]} 3. d4 {[%emt 0:00:14]} cxd4 {[%emt 0:00:08]} 4. Nxd4 {[%emt 0:00:05]} g6 {[%emt 0:00:15]} 5. Nc3 {[%emt 0:00:53]} Bg7 {[%emt 0:00:34]} 6. Be3 {[%emt 0:00:02]} d6 {[%emt 0:01:38]} 7. Qd2 {[%emt 0:00:43]} Nf6 {[%emt 0:01:10]} 8. f3 {[%emt 0:00:28]} Bd7 {[%emt 0:09:26]} 9. O-O-O {[%emt 0:02:10]} a6 {[%emt 0:00:34]} 10. Kb1 {[%emt 0:00:44]} Qc7 {[%emt 0:00:17]} 11. g4 {[%emt 0:05:26]} h6 {[%emt 0:06:34]} 12. h4 {[%emt 0:12:52]} Nxd4 {[%emt 0:13:30]} 13. Bxd4 {[%emt 0:00:53]} Bc6 {[%emt 0:00:39]} 14. Bh3 {[%emt 0:09:00]} Kf8 {[%emt 0:07:34]} 15. g5 {[%emt 0:07:52]} Ne8 {[%emt 0:11:17]} 16. Bxg7+ {[%emt 0:10:49]} Kxg7 {[%emt 0:00:07]} 17. h5 {[%emt 0:00:18]} Qa5 {[%emt 0:07:02]} 18. hxg6 {[%emt 0:20:11]} fxg6 {[%emt 0:00:28]} 19. gxh6+ {[%emt 0:00:39]} Kh7 {[%emt 0:02:26]} 20. Rdg1 {[%emt 0:05:48]} Rf8 {[%emt 0:06:04]} 21. Rg5 {[%emt 0:01:43]} Qb4 {[%emt 0:04:10]} 22. Rhg1 {[%emt 0:00:24]} Rxf3 {[%emt 0:01:47]} 23. Rxg6 {[%emt 0:04:34]} Bxe4 {[%emt 0:06:25]} 24. Qg5 {[%emt 0:02:42]} Nf6 {[%emt 0:01:44]} 25. Rg7+ {[%emt 0:00:11]} Kh8 {[%emt 0:00:08]} 26. Rh7+ {[%emt 0:00:03]} 1-0

[Event "WSTCC-50 2024"]
[Site "Krakow"]
[Date "2024.07.07"]
[Round "6.3"]
[White "Briestensky, Rastislav"]
[Black "Staeblein, Christoph"]
[Result "1/2-1/2"]
[ECO "C16"]
[WhiteElo "2274"]
[BlackElo "1991"]
[Annotator "TA"]
[PlyCount "53"]
[EventDate "2024.07.01"]
[EventType "team-tourn"]
[EventCountry "POL"]
[SourceTitle "playchess.com"]
[Source "ChessBase"]
[SourceQuality "1"]
[TimeControl "40/5400+30:1800+30"]

{[%evp 9,53,-29,-6,-17,-12,-29,-19,-27,-36,-43,-18,-72,-58,-72,-66,-73,-77,-178,-125,-106,-74,-175,-181,-518,-520,-557,-561,-543,-565,-545,-545,-1705,-1664,-2200,-1637,-1629,-1639,-1597,-1589,-1395,0,-1421,0,-1261,0,-1383]} 1. e4 {[%emt 0:00:03]} e6 {[%emt 0:00:08]} 2. d4 {[%emt 0:00:38]} d5 {[%emt 0:00:07]} 3. Nc3 {[%emt 0:00:12]} Bb4 {[%emt 0:00:07]} 4. e5 {[%emt 0:00:04]} Ne7 {[%emt 0:00:09]} 5. Nge2 {[%emt 0:00:13]} b6 {[%emt 0:04:38]} 6. a3 {[%emt 0:00:15]} Bxc3+ {[%emt 0:00:16]} 7. bxc3 {[%emt 0:01:06]} Ba6 {[%emt 0:03:34]} 8. h4 {[%emt 0:06:43]} c5 {[%emt 0:03:46]} 9. Rh3 {[%emt 0:01:08]} Nbc6 {[%emt 0:01:24]} 10. g4 {[%emt 0:00:57]} (10. Ng3 $11 Qc8 11. Nh5) 10... h5 $17 {[%emt 0:02:59]} 11. gxh5 {[%emt 0:00:13]} Qc8 {[%emt 0:02:54]} 12. h6 {[%emt 0:01:26]} gxh6 {[%emt 0:01:37]} 13. Nf4 {[%emt 0:04:19] [#]} (13. Be3 $17) 13... Bxf1 {[%emt 0:00:24]} (13... Nf5 $1 $19 {[%cal Rc5d4]} 14. Bb2 Rg8) 14. Kxf1 {[%emt 0:00:03]} Qa6+ {[%emt 0:00:34]} 15. Kg2 {[%emt 0:02:53]} (15. Qe2 $17 {might work better.} Qxe2+ 16. Nxe2) 15... Qc4 $19 {[%emt 0:08:37][%cal Rc5d4]} 16. Qh5 $2 {[%emt 0:06:25]} (16. Nh5) 16... Rg8+ {[%emt 0:15:16]} 17. Rg3 {[%emt 0:02:04]} Rxg3+ {[%emt 0:01:17]} (17... cxd4 18. Rxg8+ (18. Nxe6 Rxg3+ 19. fxg3 Qxc3 $15) 18... Nxg8 19. Nxe6 $14) 18. fxg3 {[%emt 0:00:07]} Qxc3 {[%emt 0:01:42]} 19. Ra2 {[%emt 0:01:59]} Nxd4 {[%emt 0:02:51] [#] And now ...Nef5 would win.} 20. Qxh6 {[%emt 0:01:53]} Qf3+ {[%emt 0:06:18]} (20... Nxc2 $2 21. Qh8+ Kd7 22. Qxa8 $18) 21. Kh2 {[%emt 0:01:12]} Qf2+ {[%emt 0:06:33]} 22. Ng2 {[%emt 0:01:06]} Nf3+ {[%emt 0:03:43]} (22... Nxc2 $2 23. Qh8+ Kd7 24. Qxa8 $18) 23. Kh3 {[%emt 0:00:08]} Ng1+ {[%emt 0:14:07] Excellent horsemanship.} ({And not} 23... Nxe5 24. Qh8+ Kd7 25. Qxe5 $16 (25. Qxa8 Qf5+ 26. g4 Qxg4+ 27. Kh2 Nf3+ 28. Kh1 Qh3#)) 24. Kh2 {[%emt 0:00:11]} Nf3+ {[%emt 0:02:07]} 25. Kh3 {[%emt 0:00:06]} Ng1+ {[%emt 0:04:37]} ({Not} 25... Nxe5 26. Qh8+ Kd7 27. Qxe5 $16 (27. Qxa8 {gets mated.} Qf5+ 28. g4 Qxg4+ 29. Kh2 Nf3+ 30. Kh1 Qh3#)) 26. Kh2 {[%emt 0:00:05]} Nf3+ {[%emt 0:04:10]} 27. Kh3 {[%emt 0:00:10][%mdl 32768] Weighted Error Value: White=1.00/Black=1.02.  Mistake:       	White=4     	Black=1      Inaccurate:     	White=2     	Black=1      OK:         	White=3     	Black=9      Best:        	White=2     	Black=2     . An unexpected result.} 1/2-1/2

[Event "WSTCC-50 2024"]
[Site "Krakow"]
[Date "2024.07.07"]
[Round "6.3"]
[White "Jhunjhnuwala, Ramesh"]
[Black "Metcalfe, Allister"]
[Result "1/2-1/2"]
[ECO "C07"]
[WhiteElo "2050"]
[BlackElo "1889"]
[Annotator "NA RC"]
[PlyCount "83"]
[EventDate "2024.07.01"]
[EventType "team-tourn"]
[EventCountry "POL"]
[SourceTitle "playchess.com"]
[Source "ChessBase"]
[SourceQuality "1"]
[TimeControl "40/5400+30:1800+30"]

1. e4 {[%emt 0:00:07]} e6 {[%emt 0:00:26]} 2. d4 {[%emt 0:00:06]} d5 {[%emt 0:00:08]} 3. Nd2 {[%emt 0:02:04]} c5 {[%emt 0:00:15]} 4. exd5 {[%emt 0:07:55]} Qxd5 {[%emt 0:00:40]} 5. dxc5 {[%emt 0:04:18]} Nf6 {[%emt 0:01:20]} 6. Ngf3 {[%emt 0:02:23]} Qxc5 {[%emt 0:01:38]} 7. Nb3 {[%emt 0:03:12]} Qc7 {[%emt 0:00:14]} 8. Bd3 {[%emt 0:04:10]} Be7 {[%emt 0:02:58]} 9. O-O {[%emt 0:01:38]} O-O {[%emt 0:01:41]} 10. Bg5 {[%emt 0:07:14]} Nc6 {[%emt 0:05:07]} 11. c3 {[%emt 0:02:44]} b6 {[%emt 0:10:21]} 12. Qe2 {[%emt 0:03:16]} Bb7 {[%emt 0:03:47]} 13. Rfe1 {[%emt 0:02:44]} Rfe8 {[%emt 0:08:46]} 14. Rad1 {[%emt 0:03:14]} Nd5 {[%emt 0:04:09]} 15. Qe4 {[%emt 0:01:22]} g6 {[%emt 0:00:19]} 16. Qh4 {[%emt 0:08:14]} Bf8 {[%emt 0:04:13]} 17. Bb5 {[%emt 0:07:56]} a6 {[%emt 0:03:45]} 18. Bxc6 {[%emt 0:02:20]} Bxc6 {[%emt 0:00:39]} 19. Ne5 {[%emt 0:01:56]} Bg7 {[%emt 0:06:10]} 20. Nxc6 {[%emt 0:02:26]} Qxc6 {[%emt 0:00:43]} 21. Qe4 {[%emt 0:05:30]} Qc7 {[%emt 0:04:24]} 22. Rxd5 {[%emt 0:12:03]} f5 {[%emt 0:02:05]} 23. Qe2 {[%emt 0:00:13]} exd5 {[%emt 0:00:23]} 24. Qxe8+ {[%emt 0:00:08]} Rxe8 25. Rxe8+ Kf7 {[%emt 0:03:04]} 26. Re7+ {[%emt 0:00:35]} Qxe7 {[%emt 0:00:28]} 27. Bxe7 {[%emt 0:00:05]} Kxe7 {[%emt 0:00:35]} 28. Kf1 {[%emt 0:00:17]} Kd6 {[%emt 0:03:24]} 29. Ke2 {[%emt 0:00:37]} Bf6 {[%emt 0:04:01]} 30. Kd3 {[%emt 0:00:29]} b5 {[%emt 0:01:58]} 31. Nd4 {[%emt 0:02:55]} Bd8 {[%emt 0:01:41]} 32. b3 {[%emt 0:02:14]} Bb6 {[%emt 0:01:22]} 33. f4 {[%emt 0:04:30]} Ba7 {[%emt 0:01:50]} 34. h3 {[%emt 0:00:55]} Bb6 {[%emt 0:01:32]} 35. Nf3 {[%emt 0:01:30]} Bc7 {[%emt 0:06:39]} 36. Nd4 {[%emt 0:02:25]} Bb6 {[%emt 0:00:33]} 37. Ne2 {[%emt 0:00:27]} Bf2 {[%emt 0:01:29]} 38. b4 {[%emt 0:00:57]} Ba7 {[%emt 0:00:20]} 39. Nd4 {[%emt 0:00:34]} Bb6 {[%emt 0:00:11]} 40. Ne2 {[%emt 0:00:39]} Bf2 {[%emt 0:00:26]} 41. Nd4 {[%emt 0:30:40]} Bg3 {[%emt 0:30:45]} 42. Ne2 {[%emt 0:00:54]} 1/2-1/2

[Event "WSTCC-50 2024"]
[Site "Krakow"]
[Date "2024.07.07"]
[Round "6.3"]
[White "Barron, Michael"]
[Black "Petursson, Margeir"]
[Result "0-1"]
[ECO "B54"]
[WhiteElo "2046"]
[BlackElo "2397"]
[Annotator "RC"]
[PlyCount "142"]
[EventDate "2024.07.01"]
[EventType "team-tourn"]
[EventCountry "POL"]
[SourceTitle "playchess.com"]
[Source "ChessBase"]
[SourceQuality "1"]
[TimeControl "40/5400+30:1800+30"]

1. e4 {[%emt 0:00:03]} c5 {[%emt 0:00:04]} 2. Nf3 {[%emt 0:00:06]} d6 {[%emt 0:00:07]} 3. d4 {[%emt 0:00:12]} cxd4 {[%emt 0:00:05]} 4. Nxd4 {[%emt 0:00:08]} Nf6 {[%emt 0:00:04]} 5. f3 {[%emt 0:00:15]} Nc6 {[%emt 0:02:31]} 6. c4 {[%emt 0:00:26]} Qb6 {[%emt 0:02:38]} 7. Nb3 {[%emt 0:04:55]} g6 {[%emt 0:01:46]} 8. Nc3 {[%emt 0:00:24]} Bg7 {[%emt 0:00:45]} 9. Qe2 {[%emt 0:00:24]} Nb4 {[%emt 0:05:27]} 10. Na4 {[%emt 0:04:17]} Qc7 {[%emt 0:03:39]} 11. Be3 {[%emt 0:02:45]} Be6 {[%emt 0:10:03]} 12. Qd2 {[%emt 0:02:17]} Nc6 {[%emt 0:07:32]} 13. Rc1 {[%emt 0:04:20]} O-O {[%emt 0:01:46]} 14. Be2 {[%emt 0:06:26]} Ne5 {[%emt 0:10:18]} 15. Nd4 {[%emt 0:00:34]} Bd7 {[%emt 0:01:05]} 16. Nc3 {[%emt 0:04:55]} Rfc8 {[%emt 0:00:37]} 17. b3 {[%emt 0:00:30]} Qa5 {[%emt 0:04:11]} 18. Nd5 {[%emt 0:01:53]} Qxd2+ {[%emt 0:04:46]} 19. Kxd2 {[%emt 0:00:03]} Kf8 {[%emt 0:00:55]} 20. a4 {[%emt 0:08:32]} Nc6 {[%emt 0:04:46]} 21. Nb5 {[%emt 0:06:48]} Ne8 {[%emt 0:02:45]} 22. Kd3 {[%emt 0:11:21]} e6 {[%emt 0:03:32]} 23. Ndc3 {[%emt 0:00:21]} Ke7 {[%emt 0:02:31]} 24. Nd4 {[%emt 0:01:14]} Nb4+ {[%emt 0:02:13]} 25. Kd2 {[%emt 0:00:04]} Nc7 {[%emt 0:02:39]} 26. Ndb5 {[%emt 0:05:18]} a5 {[%emt 0:03:27]} 27. Bd4 {[%emt 0:04:26]} Bxd4 {[%emt 0:00:51]} 28. Nxd4 {[%emt 0:00:09]} f5 {[%emt 0:02:00]} 29. f4 {[%emt 0:03:39]} Nca6 {[%emt 0:00:49]} 30. Bd1 {[%emt 0:03:31]} Nc5 {[%emt 0:04:41]} 31. exf5 {[%emt 0:01:16]} gxf5 {[%emt 0:00:10]} 32. Bc2 {[%emt 0:00:06]} Bc6 {[%emt 0:07:03]} 33. Rhg1 {[%emt 0:00:15]} Rg8 {[%emt 0:00:44]} 34. g3 {[%emt 0:00:03]} Kf6 {[%emt 0:01:08]} 35. Rce1 {[%emt 0:00:13]} h5 {[%emt 0:01:15]} 36. Re3 {[%emt 0:00:25]} Nxc2 {[%emt 0:03:41]} 37. Kxc2 {[%emt 0:00:43]} e5 {[%emt 0:01:20]} 38. Nde2 {[%emt 0:00:16]} Be4+ {[%emt 0:03:42]} 39. Nxe4+ {[%emt 0:00:02]} Nxe4 {[%emt 0:00:09]} 40. Rf1 {[%emt 0:00:10]} Ke6 {[%emt 0:01:34]} 41. Nc3 {[%emt 0:30:04]} Nxc3 {[%emt 0:03:38]} 42. Kxc3 {[%emt 0:00:00]} e4 {[%emt 0:00:08]} 43. Rd1 {[%emt 0:00:00]} Rac8 {[%emt 0:03:36]} 44. Rd5 {[%emt 0:00:00]} Rc5 {[%emt 0:00:56]} 45. Kd4 {[%emt 0:00:00]} Rxd5+ {[%emt 0:03:47]} 46. cxd5+ {[%emt 0:00:00]} Kd7 {[%emt 0:00:07]} 47. b4 {[%emt 0:00:00]} axb4 {[%emt 0:01:48]} 48. Rb3 {[%emt 0:00:00]} h4 {[%emt 0:00:55]} 49. Rxb4 {[%emt 0:00:00]} hxg3 {[%emt 0:03:26]} 50. hxg3 {[%emt 0:00:00]} Rxg3 {[%emt 0:01:54]} 51. Rxb7+ {[%emt 0:00:00]} Kc8 {[%emt 0:01:49]} 52. Rf7 {[%emt 0:00:00]} Rd3+ {[%emt 0:01:00]} 53. Kc4 {[%emt 0:00:00]} Rd1 {[%emt 0:00:46]} 54. a5 {[%emt 0:00:00]} e3 {[%emt 0:02:47]} 55. Re7 {[%emt 0:00:00]} Rf1 {[%emt 0:00:31]} 56. a6 {[%emt 0:00:00]} Kb8 {[%emt 0:01:46]} 57. Rxe3 {[%emt 0:00:00]} Rxf4+ {[%emt 0:00:44]} 58. Kb5 {[%emt 0:00:00]} Rf1 {[%emt 0:00:54]} 59. Re8+ {[%emt 0:00:00]} Ka7 {[%emt 0:00:06]} 60. Re7+ {[%emt 0:00:00]} Ka8 {[%emt 0:00:22]} 61. Rf7 {[%emt 0:00:00]} f4 {[%emt 0:01:08]} 62. Kb6 {[%emt 0:00:00]} Rb1+ {[%emt 0:00:04]} 63. Kc6 {[%emt 0:00:00]} Rf1 {[%emt 0:00:25]} 64. Kb6 {[%emt 0:00:00]} Rb1+ {[%emt 0:00:47]} 65. Kc7 {[%emt 0:00:00]} Rf1 {[%emt 0:00:38]} 66. Kc6 {[%emt 0:00:00]} Kb8 {[%emt 0:02:46]} 67. Kxd6 {[%emt 0:00:00]} f3 {[%emt 0:00:37]} 68. Kc6 {[%emt 0:00:00]} Rc1+ {[%emt 0:01:06]} 69. Kd7 {[%emt 0:00:00]} Rc7+ {[%emt 0:00:35]} 70. Ke6 {[%emt 0:00:00]} Rxf7 {[%emt 0:01:01]} 71. Kxf7 {[%emt 0:00:00]} f2 {[%emt 0:00:07]} 0-1

[Event "WSTCC-50 2024"]
[Site "Krakow"]
[Date "2024.07.07"]
[Round "6.4"]
[White "Thorhallsson, Throstur"]
[Black "Findlay, Ian T."]
[Result "1-0"]
[ECO "B50"]
[WhiteElo "2385"]
[BlackElo "2118"]
[Annotator "TA"]
[PlyCount "99"]
[EventDate "2024.07.01"]
[EventType "team-tourn"]
[EventCountry "POL"]
[SourceTitle "playchess.com"]
[Source "ChessBase"]
[SourceQuality "1"]
[TimeControl "40/5400+30:1800+30"]

{[%evp 12,99,0,0,7,21,16,16,36,28,31,33,37,47,38,29,29,0,29,0,0,0,0,0,0,0,0,0,0,-12,-8,-33,0,0,0,-2,2,-9,-10,-5,-3,-44,-26,-95,-39,-41,-30,-59,-10,-14,0,0,0,-2,-2,-2,0,0,0,0,29,21,21,18,81,68,50,41,77,75,152,162,164,155,172,159,145,133,166,155,154,156,158,120,130,113,208,208,512,505]} 1. e4 {[%emt 0:00:05]} c5 {[%emt 0:00:07]} 2. Nf3 {[%emt 0:00:12]} d6 {[%emt 0:00:07]} 3. c3 {[%emt 0:00:13]} Nf6 {[%emt 0:00:27]} 4. Bd3 {[%emt 0:00:14]} g6 {[%emt 0:04:03]} 5. Bc2 {[%emt 0:01:15]} Bg7 {[%emt 0:00:20]} 6. h3 {[%emt 0:00:25]} O-O {[%emt 0:01:54]} 7. O-O {[%emt 0:00:07]} b5 {[%emt 0:03:07][%cal Bb7b5,Bb5b4][%mdl 32]} 8. d4 {[%emt 0:03:02]} cxd4 {[%emt 0:00:09]} 9. cxd4 {[%emt 0:00:37]} Bb7 {[%emt 0:00:19] The position is equal.} 10. Re1 {[%emt 0:01:50]} Nc6 {[%emt 0:03:01]} 11. Nc3 {[%emt 0:13:01][%cal Bb1c3,Bc3a4,Ba4c5,Bc5d3][%mdl 32]} b4 {[%emt 0:09:28]} 12. Na4 {[%emt 0:05:51]} e6 {[%emt 0:19:37]} 13. Bf4 {[%emt 0:07:01]} Re8 {[%emt 0:03:28]} 14. Bh2 {[%emt 0:18:11]} e5 {[%emt 0:07:42]} 15. dxe5 {[%emt 0:03:21]} Nxe5 {[%emt 0:00:41]} 16. Bxe5 {[%emt 0:06:11]} dxe5 {[%emt 0:00:14]} 17. Nc5 {[%emt 0:00:38] Qxd8 would now be deadly.} Qxd1 {[%emt 0:03:38]} 18. Bxd1 {[%emt 0:01:31]} Bc6 {[%emt 0:00:47]} 19. Bb3 {[%emt 0:04:15]} a5 {[%emt 0:08:02]} 20. Rac1 {[%emt 0:07:51][%cal Oc5e6]} Bh6 {[%emt 0:03:44]} 21. Rcd1 {[%emt 0:02:22]} (21. Rc2 $5) 21... Bf8 {[%emt 0:02:49] Prevents Rd6. This pair of bishops is nice.} 22. Nd3 {[%emt 0:02:08]} Nd7 {[%emt 0:01:55]} 23. Rc1 {[%emt 0:02:10]} Bb5 {[%emt 0:09:24]} 24. Bc4 {[%emt 0:01:54]} Bxc4 {[%emt 0:01:38]} 25. Rxc4 {[%emt 0:00:03]} Rad8 {[%emt 0:00:26]} 26. Rc7 {[%emt 0:03:35]} Nb6 {[%emt 0:00:26]} 27. Rc6 {[%emt 0:05:18] [#]} (27. Nc5 $11 {remains equal.}) 27... Rxd3 {[%emt 0:00:41]} (27... Na4 $1 $17 28. Ndxe5 (28. Nfxe5 $2 Bg7 $19) 28... Nxb2) 28. Rxb6 $15 {[%emt 0:00:05]} Rc8 {[%emt 0:03:01]} 29. Ra6 {[%emt 0:03:15]} Rc5 {[%emt 0:04:16]} (29... Rc2 $15) 30. b3 {[%emt 0:01:31]} Bh6 {[%emt 0:03:32]} 31. h4 {[%emt 0:01:30]} Bf4 {[%emt 0:01:23]} 32. Kf1 {[%emt 0:02:51]} Kg7 {[%emt 0:02:23]} 33. Ra7 {[%emt 0:00:19]} Rdc3 {[%emt 0:02:04]} 34. Rb7 {[%emt 0:02:01]} Rc2 {[%emt 0:00:14]} 35. g3 {[%emt 0:00:36]} Bh6 {[%emt 0:00:47]} 36. Rd1 {[%emt 0:00:58] Black must now prevent Rdd7.} Rc1 $1 {[%emt 0:00:23]} (36... Rxa2 $2 37. Rdd7 Kg8 38. Rxf7 $18) 37. Rxc1 {[%emt 0:00:18]} Rxc1+ $11 {[%emt 0:00:35][%mdl 4096] Endgame. KRB-KRN} (37... Bxc1 $11 38. Kg2 h6) 38. Kg2 $16 {[%emt 0:00:13]} Rc5 {[%emt 0:00:10]} 39. Ne1 {[%emt 0:00:51]} Kf6 {[%emt 0:02:07] [#]} 40. Ra7 $1 {[%emt 0:01:20]} Ke6 {[%emt 0:00:45]} (40... Bd2 $142 41. Nf3 (41. Nd3 Rc2 $16) 41... Bc1) 41. Nd3 {[%emt 0:30:56] White is more active.} Rb5 {[%emt 0:02:30]} 42. Nb2 {[%emt 0:00:00]} Bd2 {[%emt 0:01:20]} 43. Nc4 {[%emt 0:00:00]} Bc3 {[%emt 0:00:06]} 44. Ra6+ {[%emt 0:00:00]} (44. Rxa5 $6 Rxa5 45. Nxa5 Kd7 $11) 44... Kd7 {[%emt 0:01:02]} 45. Nxa5 {[%emt 0:00:00]} (45. Rxa5 Rxa5 46. Nxa5 f5 $16) 45... Bd4 {[%emt 0:00:57]} 46. Nc4 {[%emt 0:00:00]} h5 {[%emt 0:00:10]} 47. Kf3 {[%emt 0:00:00]} Rb8 {[%emt 0:00:25]} 48. Ke2 {[%emt 0:00:00]} Rb7 {[%emt 0:00:57]} (48... Ke8 $16 49. Ra4 Ke7) 49. f4 $18 {[%emt 0:00:00]} exf4 $2 {[%emt 0:01:10]} (49... Rc7 50. Kf3 (50. Nxe5+ Bxe5 51. fxe5 Rc3 $16) (50. fxe5 Rc6 $18) 50... Ke7 51. fxe5 (51. Nxe5 Rc3+ 52. Kg2 Rc2+ 53. Kf1 Bxe5 $11) 51... Rd7) 50. Rd6+ {[%emt 0:00:00] Weighted Error Value: White=0.10 (very precise) /Black=0.20 (precise) .  Mistake:       	White=1     	Black=6      Inaccurate:     	White=4     	Black=4      OK:         	White=18    	Black=16     Best:        	White=3     	---        Strong:       	White=1     	Black=1} ({Not} 50. gxf4 Ke7 51. f5 (51. Na5 Rb6 $18) 51... Bc3 $18) 1-0